fUSD/lending_fUSD_20240210
["ID","MTS","AMOUNT","RATE_DAILY","PERIOD"]
[313690946,1707587250665,-500.0,0.00039726,30]
[313690947,1707587250702,-500.0,0.00039726,30]
[313690948,1707587250732,-1137.16,0.00039726,30]
[313690949,1707587250764,-500.0,0.00039726,30]
[313690950,1707587250794,-500.0,0.00039726,30]
[313690951,1707587250823,-500.0,0.00039726,30]
[313690952,1707587250854,-1314.29,0.00039726,30]
[313690953,1707587250885,-1066.72,0.00039726,30]
[313690954,1707587250916,-500.0,0.00039726,30]
[313690955,1707587250946,-500.0,0.00039726,30]
[313690956,1707587250976,-500.0,0.00039726,30]
[313690957,1707587251008,-500.0,0.00039726,30]
[313690958,1707587251039,-500.0,0.00039726,30]
[313690959,1707587251069,-533.56,0.00039726,30]
[313690960,1707587251100,-243.01328275,0.00039726,30]
[313690961,1707587251132,-500.0,0.00039726,30]
[313690962,1707587251165,-500.0,0.00039726,30]
[313690963,1707587251198,-500.0,0.00039726,30]
[313690964,1707587251230,-500.0,0.00039726,30]
[313690965,1707587251262,-259.88350146,0.00039726,30]
[313690966,1707587251294,-198.81215917,0.00039726,30]
[313690967,1707587251326,-678.24,0.00039726,30]
[313690968,1707587251358,-500.0,0.00039726,30]
[313690969,1707587251389,-500.0,0.00039726,30]
[313690970,1707587251420,-500.0,0.00039726,30]
[313690971,1707587251452,-500.0,0.00039726,30]
[313690972,1707587251482,-513.21,0.00039726,30]
[313690973,1707587251513,-500.0,0.00039726,30]
[313690974,1707587251545,-500.0,0.00039726,30]
[313690975,1707587251577,-500.0,0.00039726,30]
[313690976,1707587251609,-500.0,0.00039726,30]
[313690977,1707587251642,-500.0,0.00039726,30]
[313690978,1707587251673,-1052.2,0.00039726,30]
[313690979,1707587251704,-506.34,0.00039726,30]
[313690980,1707587251734,-500.0,0.00039726,30]
[313690981,1707587251764,-500.0,0.00039726,30]
[313690982,1707587251795,-500.0,0.00039726,30]
[313690983,1707587251828,-707.55,0.00039726,30]
[313690984,1707587251859,-836.27,0.00039726,30]
[313690985,1707587251890,-500.0,0.00039726,30]
[313690986,1707587251920,-543.5,0.00039726,30]
[313690987,1707587251950,-500.0,0.00039726,30]
[313690988,1707587251980,-500.0,0.00039726,30]
[313690989,1707587252011,-592.9,0.00039726,30]
[313690990,1707587252045,-500.0,0.00039726,30]
[313690991,1707587252077,-587.43,0.00039726,30]
[313690992,1707587252109,-1295.97,0.00039726,30]
[313690993,1707587252141,-500.0,0.00039726,30]
[313690994,1707587252176,-925.29,0.00039726,30]
[313690995,1707587252210,-500.0,0.00039726,30]
[313690996,1707587252242,-536.06690415,0.00039726,30]
[313690997,1707587252273,-653.92,0.00039726,30]
[313690998,1707587252305,-500.0,0.00039726,30]
[313690999,1707587252336,-500.0,0.00039726,30]
[313691000,1707587252368,-2044.92,0.00039726,30]
[313691001,1707587252401,-500.0,0.00039726,30]
[313691002,1707587252433,-500.0,0.00039726,30]
[313691003,1707587252464,-616.57,0.00039726,30]
[313691004,1707587252495,-500.0,0.00039726,30]
[313691005,1707587252526,-722.45,0.00039726,30]
[313691006,1707587252556,-643.45,0.00039726,30]
[313691007,1707587252586,-656.66,0.00039726,30]
[313691008,1707587252619,-594.35,0.00039726,30]
[313691009,1707587252650,-500.0,0.00039726,30]
[313691010,1707587252683,-1910.71,0.00039726,30]
[313691011,1707587252718,-500.0,0.00039726,30]
[313691012,1707587252749,-500.0,0.00039726,30]
[313691013,1707587252781,-500.0,0.00039726,30]
[313691014,1707587252811,-500.0,0.00039726,30]
[313691015,1707587252842,-853.13,0.00039726,30]
[313691016,1707587252872,-1438.68,0.00039726,30]
[313691017,1707587253063,-500.0,0.00039726,30]
[313691018,1707587253095,-500.0,0.00039726,30]
[313691019,1707587253130,-500.0,0.00039726,30]
[313691020,1707587253169,-636.08,0.00039726,30]
[313691021,1707587253203,-500.0,0.00039726,30]
[313691022,1707587253237,-500.0,0.00039726,30]
[313691023,1707587253271,-500.0,0.00039726,30]
[313691024,1707587253305,-506.82,0.00039726,30]
[313691025,1707587253342,-500.0,0.00039726,30]
[313691026,1707587253381,-500.0,0.00039726,30]
[313691027,1707587253415,-500.0,0.00039726,30]
[313691028,1707587253448,-500.0,0.00039726,30]
[313691029,1707587253481,-500.0,0.00039726,30]
[313691030,1707587253512,-500.0,0.00039726,30]
[313691031,1707587253543,-500.0,0.00039726,30]
[313691032,1707587253574,-500.0,0.00039726,30]
[313691033,1707587253606,-1572.11,0.00039726,30]
[313691034,1707587253640,-500.0,0.00039726,30]
[313691035,1707587253673,-1421.05,0.00039726,30]
[313691036,1707587253704,-500.0,0.00039726,30]
[313691037,1707587253739,-500.0,0.00039726,30]
[313691038,1707587253770,-500.0,0.00039726,30]
[313691039,1707587253801,-500.0,0.00039726,30]
[313691040,1707587253836,-500.0,0.00039726,30]
[313691041,1707587253871,-566.36,0.00039726,30]
[313691042,1707587253902,-1214.77,0.00039726,30]
[313691043,1707587253934,-1096.05,0.00039726,30]
[313691044,1707587253966,-855.36,0.00039726,30]
[313691045,1707587253998,-500.0,0.00039726,30]
[313691046,1707587254029,-693.6,0.00039726,30]
[313691047,1707587254065,-626.03,0.00039726,30]
[313691048,1707587254097,-500.0,0.00039726,30]
[313691049,1707587254131,-500.0,0.00039726,30]
[313691050,1707587254165,-1343.72,0.00039726,30]
[313691051,1707587254200,-3451.1,0.00039726,30]
[313691052,1707587254235,-500.0,0.00039726,30]
[313691053,1707587254267,-500.0,0.00039726,30]
[313691054,1707587254300,-500.0,0.00039726,30]
[313691055,1707587254332,-630.33,0.00039726,30]
[313691056,1707587254364,-500.0,0.00039726,30]
[313691057,1707587254397,-1359.44,0.00039726,30]
[313691058,1707587254429,-617.86,0.00039726,30]
[313691059,1707587254460,-746.23,0.00039726,30]
[313691060,1707587254492,-500.0,0.00039726,30]
[313691061,1707587254522,-500.0,0.00039726,30]
[313691062,1707587254557,-500.0,0.00039726,30]
[313691063,1707587254589,-712.75,0.00039726,30]
[313691064,1707587254623,-849.56,0.00039726,30]
[313691065,1707587254654,-1189.34,0.00039726,30]
[313691066,1707587254686,-515.6,0.00039726,30]
[313691067,1707587254719,-245.48143015,0.00039726,30]
[313691068,1707587254750,-500.0,0.00039726,30]
[313691069,1707587254781,-500.0,0.00039726,30]
[313691070,1707587254812,-731.92,0.00039726,30]
[313691071,1707587254842,-500.0,0.00039726,30]
[313691072,1707587254874,-1114.3,0.00039726,30]
[313691073,1707587254905,-500.0,0.00039726,30]
[313691074,1707587254937,-500.0,0.00039726,30]
[313691075,1707587254968,-348.95,0.00039726,30]
[313691076,1707587255001,-1121.74,0.00039726,30]
[313691077,1707587255034,-525.58,0.00039726,30]
[313691078,1707587255067,-977.73,0.00039726,30]
[313691079,1707587255099,-500.0,0.00039726,30]
[313691080,1707587255138,-561.13,0.00039726,30]
[313691081,1707587255175,-947.65,0.00039726,30]
[313691082,1707587255212,-1026.02,0.00039726,30]
[313691083,1707587255247,-500.0,0.00039726,30]
[313691084,1707587255286,-500.0,0.00039726,30]
[313691085,1707587255319,-1242.56,0.00039726,30]
[313691086,1707587255355,-645.83,0.00039726,30]
[313691087,1707587255391,-1691.5,0.00039726,30]
[313691088,1707587255426,-500.0,0.00039726,30]
[313691089,1707587255460,-500.0,0.00039726,30]
[313691090,1707587255493,-500.0,0.00039726,30]
[313691091,1707587255527,-500.0,0.00039726,30]
[313691092,1707587255559,-500.0,0.00039726,30]
[313691093,1707587255593,-873.15,0.00039726,30]
[313691094,1707587255629,-500.0,0.00039726,30]
[313691095,1707587255663,-708.27,0.00039726,30]
[313691096,1707587255696,-529.55,0.00039726,30]
[313691097,1707587255729,-779.81,0.00039726,30]
[313691098,1707587255762,-1056.2,0.00039726,30]
[313691099,1707587255794,-500.0,0.00039726,30]
[313691100,1707587255827,-970.19,0.00039726,30]
[313691101,1707587255861,-500.0,0.00039726,30]
[313691102,1707587255895,-519.82,0.00039726,30]
[313691103,1707587255930,-678.81,0.00039726,30]
[313691104,1707587255965,-500.0,0.00039726,30]
[313691105,1707587256000,-705.9,0.00039726,30]
[313691106,1707587256033,-1052.93,0.00039726,30]
[313691107,1707587256066,-500.0,0.00039726,30]
[313691108,1707587256098,-500.0,0.00039726,30]
[313691109,1707587256131,-500.0,0.00039726,30]
[313691110,1707587256163,-684.62,0.00039726,30]
[313691111,1707587256195,-1004.11,0.00039726,30]
[313691112,1707587256228,-711.92,0.00039726,30]
[313691113,1707587256259,-500.0,0.00039726,30]
[313691114,1707587256292,-667.08,0.00039726,30]
[313691115,1707587256324,-754.28,0.00039726,30]
[313691116,1707587256355,-500.0,0.00039726,30]
[313691117,1707587256387,-500.0,0.00039726,30]
[313691118,1707587256422,-500.0,0.00039726,30]
[313691119,1707587256455,-500.0,0.00039726,30]
[313691120,1707587256488,-219.71212788,0.00039726,30]
[313691121,1707587256699,-725.08,0.00039726,30]
[313691122,1707587256733,-500.0,0.00039726,30]
[313691123,1707587256768,-509.63,0.00039726,30]
[313691124,1707587256800,-1382.71,0.00039726,30]
[313691125,1707587256832,-1447.85,0.00039726,30]
[313691126,1707587256862,-1223.13,0.00039726,30]
[313691127,1707587256895,-2091.65,0.00039726,30]
[313691128,1707587256926,-500.0,0.00039726,30]
[313691129,1707587256959,-611.01,0.00039726,30]
[313691130,1707587256989,-969.91,0.00039726,30]
[313691131,1707587257020,-1057.09,0.00039726,30]
[313691132,1707587257052,-500.0,0.00039726,30]
[313691133,1707587257084,-672.89,0.00039726,30]
[313691134,1707587257117,-250.0,0.00039726,30]
[313691135,1707587257153,-500.0,0.00039726,30]
[313691136,1707587257192,-500.0,0.00039726,30]
[313691137,1707587257226,-1517.8,0.00039726,30]
[313691138,1707587257260,-1316.97,0.00039726,30]
[313691139,1707587257296,-738.23,0.00039726,30]
[313691140,1707587257330,-500.0,0.00039726,30]
[313691141,1707587257365,-1065.11,0.00039726,30]
[313691142,1707587257396,-1631.07,0.00039726,30]
[313691143,1707587257429,-500.0,0.00039726,30]
[313691144,1707587257465,-500.0,0.00039726,30]
[313691145,1707587257498,-500.0,0.00039726,30]
[313691146,1707587257529,-706.87,0.00039726,30]
[313691147,1707587257559,-765.85,0.00039726,30]
[313691148,1707587257589,-1109.61,0.00039726,30]
[313691149,1707587257621,-1493.22,0.00039726,30]
[313691150,1707587257653,-500.0,0.00039726,30]
[313691151,1707587257683,-500.0,0.00039726,30]
[313691152,1707587257717,-1173.55,0.00039726,30]
[313691153,1707587257747,-514.5,0.00039726,30]
[313691154,1707587257778,-2263.23,0.00039726,30]
[313691155,1707587257808,-628.62,0.00039726,30]
[313691156,1707587257838,-500.0,0.00039726,30]
[313691157,1707587257867,-1076.65,0.00039726,30]
[313691158,1707587257898,-500.0,0.00039726,30]
[313691159,1707587257929,-1197.78,0.00039726,30]
[313691160,1707587257959,-1543.54,0.00039726,30]
[313691161,1707587257989,-500.0,0.00039726,30]
[313691162,1707587258020,-500.0,0.00039726,30]
[313691163,1707587258053,-1126.72,0.00039726,30]
[313691164,1707587258093,-500.0,0.00039726,30]
[313691165,1707587258126,-500.0,0.00039726,30]
[313691166,1707587258160,-574.65,0.00039726,30]
[313691167,1707587258191,-1151.29,0.00039726,30]
[313691168,1707587258223,-1633.0,0.00039726,30]
[313691169,1707587258257,-1001.15,0.00039726,30]
[313691170,1707587258291,-500.0,0.00039726,30]
[313691171,1707587258324,-500.0,0.00039726,30]
[313691172,1707587258355,-631.57,0.00039726,30]
[313691173,1707587258385,-500.0,0.00039726,30]
[313691174,1707587258417,-500.0,0.00039726,30]
[313691175,1707587258447,-500.0,0.00039726,30]
[313691176,1707587258479,-500.0,0.00039726,30]
[313691177,1707587258509,-1429.03,0.00039726,30]
[313691178,1707587258540,-2260.97,0.00039726,30]
[313691179,1707587258570,-500.0,0.00039726,30]
[313691180,1707587258601,-517.54,0.00039726,30]
[313691181,1707587258632,-500.0,0.00039726,30]
[313691182,1707587258663,-7649.15,0.00039726,30]
[313691183,1707587258693,-500.0,0.00039726,30]
[313691184,1707587258728,-623.04,0.00039726,30]
[313691185,1707587258759,-500.0,0.00039726,30]
[313691186,1707587258790,-500.0,0.00039726,30]
[313691187,1707587258820,-500.0,0.00039726,30]
[313691188,1707587258852,-1193.5,0.00039726,30]
[313691189,1707587258882,-500.0,0.00039726,30]
[313691190,1707587258911,-648.02,0.00039726,30]
[313691191,1707587258941,-1288.88,0.00039726,30]
[313691192,1707587258970,-640.03,0.00039726,30]
[313691193,1707587259000,-500.0,0.00039726,30]
[313691194,1707587259032,-500.0,0.00039726,30]
[313691195,1707587259062,-500.0,0.00039726,30]
[313691196,1707587259091,-1073.46,0.00039726,30]
[313691197,1707587259122,-500.0,0.00039726,30]
[313691198,1707587259155,-2073.35,0.00039726,30]
[313691199,1707587259185,-1221.03,0.00039726,30]
[313691200,1707587259214,-1706.51,0.00039726,30]
[313691201,1707587259244,-577.01,0.00039726,30]
[313691202,1707587259274,-516.71,0.00039726,30]
[313691203,1707587259304,-500.0,0.00039726,30]
[313691204,1707587259335,-500.0,0.00039726,30]
[313691205,1707587259367,-616.62,0.00039726,30]
[313691206,1707587259401,-500.0,0.00039726,30]
[313691207,1707587259431,-500.0,0.00039726,30]
[313691208,1707587259462,-500.0,0.00039726,30]
[313691209,1707587259492,-1296.34,0.00039726,30]
[313691210,1707587259522,-500.0,0.00039726,30]
[313691211,1707587259552,-528.39974863,0.00039726,30]
[313691212,1707587259582,-2223.99,0.00039726,30]
[313691213,1707587259615,-2222.55,0.00039726,30]
[313691214,1707587259647,-500.0,0.00039726,30]
[313691215,1707587259678,-3802.28,0.00039726,30]
[313691216,1707587259709,-500.0,0.00039726,30]
[313691217,1707587259739,-677.17,0.00039726,30]
[313691218,1707587259774,-762.41,0.00039726,30]
[313691219,1707587259805,-1153.81,0.00039726,30]
[313691220,1707587259835,-984.72,0.00039726,30]
[313691221,1707587259874,-500.0,0.00039726,30]
[313691222,1707587259905,-1103.08,0.00039726,30]
[313691223,1707587259936,-500.0,0.00039726,30]
[313691224,1707587259969,-1897.56,0.00039726,30]
[313691225,1707587260155,-555.2,0.00039726,30]
[313691226,1707587260187,-500.0,0.00039726,30]
[313691227,1707587260220,-542.42,0.00039726,30]
[313691228,1707587260252,-500.0,0.00039726,30]
[313691229,1707587260284,-573.6,0.00039726,30]
[313691230,1707587260316,-500.0,0.00039726,30]
[313691231,1707587260348,-1256.18,0.00039726,30]
[313691232,1707587260380,-1448.23,0.00039726,30]
[313691233,1707587260412,-520.16,0.00039726,30]
[313691234,1707587260443,-500.0,0.00039726,30]
[313691235,1707587260473,-500.0,0.00039726,30]
[313691236,1707587260503,-500.0,0.00039726,30]
[313691237,1707587260534,-500.0,0.00039726,30]
[313691238,1707587260569,-1609.58,0.00039726,30]
[313691239,1707587260602,-767.11,0.00039726,30]
[313691240,1707587260636,-666.67,0.00039726,30]
[313691241,1707587260669,-500.0,0.00039726,30]
[313691242,1707587260701,-500.0,0.00039726,30]
[313691243,1707587260733,-980.77,0.00039726,30]
[313691244,1707587260763,-608.8,0.00039726,30]
[313691245,1707587260796,-362.86152323,0.00039726,30]
[313691246,1707587260829,-1423.85,0.00039726,30]
[313691247,1707587260861,-500.0,0.00039726,30]
[313691248,1707587260893,-1220.89,0.00039726,30]
[313691249,1707587260924,-500.0,0.00039726,30]
[313691250,1707587260956,-2613.25,0.00039726,30]
[313691251,1707587260987,-528.73,0.00039726,30]
[313691252,1707587261020,-500.0,0.00039726,30]
[313691253,1707587261051,-1293.06,0.00039726,30]
[313691254,1707587261084,-627.76,0.00039726,30]
[313691255,1707587261118,-586.63,0.00039726,30]
[313691256,1707587261150,-1595.18,0.00039726,30]
[313691257,1707587261181,-1575.17,0.00039726,30]
[313691258,1707587261214,-2251.38,0.00039726,30]
[313691259,1707587261246,-500.0,0.00039726,30]
[313691260,1707587261278,-500.0,0.00039726,30]
[313691261,1707587261310,-500.0,0.00039726,30]
[313691262,1707587261342,-500.0,0.00039726,30]
[313691263,1707587261375,-2197.66,0.00039726,30]
[313691264,1707587261408,-408.2,0.00039726,30]
[313691265,1707587261439,-849.0,0.00039726,30]
[313691266,1707587261471,-1049.96,0.00039726,30]
[313691267,1707587261504,-500.0,0.00039726,30]
[313691268,1707587261536,-1051.07,0.00039726,30]
[313691269,1707587261567,-551.19,0.00039726,30]
[313691270,1707587261599,-529.49,0.00039726,30]
[313691271,1707587261633,-500.0,0.00039726,30]
[313691272,1707587261664,-969.21,0.00039726,30]
[313691273,1707587261696,-2142.16,0.00039726,30]
[313691274,1707587261727,-651.01,0.00039726,30]
[313691275,1707587261758,-962.3,0.00039726,30]
[313691276,1707587261790,-1257.96,0.00039726,30]
[313691277,1707587261821,-847.82,0.00039726,30]
[313691278,1707587261853,-500.0,0.00039726,30]
[313691279,1707587261884,-183.06,0.00039726,30]
[313691280,1707587261914,-500.0,0.00039726,30]
[313691281,1707587261946,-500.0,0.00039726,30]
[313691282,1707587261976,-500.0,0.00039726,30]
[313691283,1707587262011,-500.0,0.00039726,30]
[313691284,1707587262044,-500.0,0.00039726,30]
[313691285,1707587262075,-587.75,0.00039726,30]
[313691286,1707587262107,-1504.28,0.00039726,30]
[313691287,1707587262142,-500.0,0.00039726,30]
[313691288,1707587262176,-773.57,0.00039726,30]
[313691289,1707587262210,-1079.05,0.00039726,30]
[313691290,1707587262244,-500.0,0.00039726,30]
[313691291,1707587262278,-1348.64,0.00039726,30]
[313691292,1707587262313,-872.64,0.00039726,30]
[313691293,1707587262350,-1075.53,0.00039726,30]
[313691294,1707587262386,-3976.56,0.00039726,30]
[313691295,1707587262423,-500.0,0.00039726,30]
[313691296,1707587262455,-720.38,0.00039726,30]
[313691297,1707587262486,-500.0,0.00039726,30]
[313691298,1707587262517,-1396.29,0.00039726,30]
[313691299,1707587262549,-500.0,0.00039726,30]
[313691300,1707587262580,-1241.2,0.00039726,30]
[313691301,1707587262611,-500.0,0.00039726,30]
[313691302,1707587262645,-500.0,0.00039726,30]
[313691303,1707587262676,-766.59,0.00039726,30]
[313691304,1707587262708,-878.46,0.00039726,30]
[313691305,1707587262739,-500.0,0.00039726,30]
[313691306,1707587262770,-695.42,0.00039726,30]
[313691307,1707587262800,-569.84,0.00039726,30]
[313691308,1707587262832,-4903.15,0.00039726,30]
[313691309,1707587262862,-500.0,0.00039726,30]
[313691310,1707587262892,-514.73,0.00039726,30]
[313691311,1707587262922,-2462.27,0.00039726,30]
[313691312,1707587262952,-500.0,0.00039726,30]
[313691313,1707587262983,-3083.4,0.00039726,30]
[313691314,1707587263013,-500.0,0.00039726,30]
[313691315,1707587263043,-500.0,0.00039726,30]
[313691316,1707587263073,-855.61,0.00039726,30]
[313691317,1707587263106,-500.0,0.00039726,30]
[313691318,1707587263142,-527.2,0.00039726,30]
[313691319,1707587263175,-231.28891394,0.00039726,30]
[313691320,1707587268505,-2000000.0,0.00040092,120]
[313691321,1707587279555,495.93,0.00021229,2]
[313691322,1707587283839,200.0,0.00021218,2]
[313691323,1707587284810,792.51428452,0.00021217,2]
[313691324,1707587286296,792.51428452,0.00021217,2]
[313691325,1707587287698,2502.12748712,0.00021216,2]
[313691326,1707587289413,2576.79307366,0.00021215,2]
[313691327,1707587289436,2893.92731767,0.00021215,2]
[313691328,1707587289902,-2000000.0,0.00040092,120]
[313691329,1707587308300,-500.0,0.00038356,30]
[313691330,1707587308513,-503.58098672,0.00038356,30]
[313691331,1707587308546,-500.0,0.00038356,30]
[313691332,1707587308578,-204.93333924,0.00038356,30]
[313691333,1707587308611,-500.0,0.00038356,30]
[313691334,1707587308644,-500.0,0.00038356,30]
[313691335,1707587308676,-502.8559742,0.00038356,30]
[313691336,1707587308708,-500.0,0.00038356,30]
[313691337,1707587308740,-500.0,0.00038356,30]
[313691338,1707587308769,-500.0,0.00038356,30]
[313691339,1707587308800,-500.0,0.00038356,30]
[313691340,1707587308832,-500.0,0.00038356,30]
[313691341,1707587308863,-500.0,0.00038356,30]
[313691342,1707587308895,-500.0,0.00038356,30]
[313691343,1707587308931,-695.9,0.00038356,30]
[313691344,1707587308964,-639.84,0.00038356,30]
[313691345,1707587308995,-500.0,0.00038356,30]
[313691346,1707587309026,-500.0,0.00038356,30]
[313691347,1707587309058,-500.0,0.00038356,30]
[313691348,1707587309089,-500.0,0.00038356,30]
[313691349,1707587309125,-500.0,0.00038356,30]
[313691350,1707587309158,-500.0,0.00038356,30]
[313691351,1707587309191,-500.0,0.00038356,30]
[313691352,1707587309226,-500.0,0.00038356,30]
[313691353,1707587309261,-500.0,0.00038356,30]
[313691354,1707587309295,-502.52783856,0.00038356,30]
[313691355,1707587309333,-500.0,0.00038356,30]
[313691356,1707587309371,-500.0,0.00038356,30]
[313691357,1707587309404,-500.0,0.00038356,30]
[313691358,1707587309437,-310.48297165,0.00038356,30]
[313691359,1707587309470,-500.0,0.00038356,30]
[313691360,1707587309503,-500.0,0.00038356,30]
[313691361,1707587309535,-1431.68,0.00038356,30]
[313691362,1707587309566,-500.0,0.00038356,30]
[313691363,1707587309596,-500.0,0.00038356,30]
[313691364,1707587309627,-1000.0,0.00038356,120]
[313691365,1707587309657,-500.0,0.00038356,30]
[313691366,1707587309688,-510.8823787,0.00038356,30]
[313691367,1707587309719,-523.41,0.00038356,30]
[313691368,1707587309749,-500.0,0.00038356,30]
[313691369,1707587309779,-1209.67,0.00038356,30]
[313691370,1707587309812,-727.64,0.00038356,30]
[313691371,1707587309841,-500.0,0.00038356,30]
[313691372,1707587309872,-500.0,0.00038356,30]
[313691373,1707587309901,-500.0,0.00038356,30]
[313691374,1707587309931,-500.0,0.00038356,30]
[313691375,1707587309961,-500.0,0.00038356,30]
[313691376,1707587309991,-1695.73,0.00038356,30]
[313691377,1707587310023,-500.0,0.00038356,30]
[313691378,1707587310054,-500.0,0.00038356,30]
[313691379,1707587310086,-506.21905942,0.00038356,30]
[313691380,1707587310115,-500.0,0.00038356,30]
[313691381,1707587310148,-500.0,0.00038356,30]
[313691382,1707587310179,-636.9,0.00038356,30]
[313691383,1707587310210,-552.79,0.00038356,30]
[313691384,1707587310241,-822.03,0.00038356,30]
[313691385,1707587310273,-500.0,0.00038356,30]
[313691386,1707587310305,-969.79,0.00038356,30]
[313691387,1707587310336,-500.0,0.00038356,30]
[313691388,1707587310367,-500.0,0.00038356,30]
[313691389,1707587310398,-500.0,0.00038356,30]
[313691390,1707587310428,-1558.57,0.00038356,30]
[313691391,1707587310458,-500.0,0.00038356,30]
[313691392,1707587310488,-500.0,0.00038356,30]
[313691393,1707587310516,-500.0,0.00038356,30]
[313691394,1707587310546,-519.84,0.00038356,30]
[313691395,1707587310576,-500.0,0.00038356,30]
[313691396,1707587310606,-520.2,0.00038356,30]
[313691397,1707587310643,-574.94,0.00038356,30]
[313691398,1707587310675,-726.91,0.00038356,30]
[313691399,1707587310705,-500.0,0.00038356,30]
[313691400,1707587310736,-500.0,0.00038356,30]
[313691401,1707587310765,-500.0,0.00038356,30]
[313691402,1707587310795,-500.0,0.00038356,30]
[313691403,1707587310827,-174.44588538,0.0003863,30]
[313691404,1707587310859,-500.0,0.0003863,30]
[313691405,1707587310890,-500.0,0.0003863,30]
[313691406,1707587310920,-500.0,0.0003863,30]
[313691407,1707587310951,-500.0,0.0003863,30]
[313691408,1707587310983,-500.0,0.0003863,30]
[313691409,1707587311016,-500.0,0.0003863,30]
[313691410,1707587311047,-500.0,0.0003863,30]
[313691411,1707587311077,-695.9,0.0003863,30]
[313691412,1707587311108,-639.84,0.0003863,30]
[313691413,1707587311139,-500.0,0.0003863,30]
[313691414,1707587311170,-500.0,0.0003863,30]
[313691415,1707587311201,-500.0,0.0003863,30]
[313691416,1707587311231,-500.0,0.0003863,30]
[313691417,1707587311263,-500.0,0.0003863,30]
[313691418,1707587311293,-250.77155153,0.0003863,30]
[313691419,1707587311324,-500.0,0.0003863,30]
[313691420,1707587311356,-174.2,0.0003863,30]
[313691421,1707587311716,-500.0,0.0003863,30]
[313691422,1707587311749,-500.0,0.0003863,30]
[313691423,1707587311781,-500.0,0.0003863,30]
[313691424,1707587311811,-500.0,0.0003863,30]
[313691425,1707587311846,-1431.68,0.0003863,30]
[313691426,1707587311876,-238.48,0.0003863,30]
[313691427,1707587311906,-500.0,0.0003863,30]
[313691428,1707587311936,-1000.0,0.0003863,120]
[313691429,1707587311966,-500.0,0.0003863,30]
[313691430,1707587311996,-523.41,0.0003863,30]
[313691431,1707587312027,-173.19381905,0.0003863,30]
[313691432,1707587312060,-1209.67,0.0003863,30]
[313691433,1707587312091,-727.64,0.0003863,30]
[313691434,1707587312123,-500.0,0.0003863,30]
[313691435,1707587312155,-500.0,0.0003863,30]
[313691436,1707587312186,-500.0,0.0003863,30]
[313691437,1707587312216,-1695.73,0.0003863,30]
[313691438,1707587312246,-500.0,0.0003863,30]
[313691439,1707587312277,-500.0,0.0003863,30]
[313691440,1707587312307,-500.0,0.0003863,30]
[313691441,1707587312339,-500.0,0.0003863,30]
[313691442,1707587312369,-636.9,0.0003863,30]
[313691443,1707587312406,-552.79,0.0003863,30]
[313691444,1707587312438,-500.0,0.0003863,30]
[313691445,1707587312469,-969.79,0.0003863,30]